Workbook

Sheet 1.집계표(구분1)
A2: 2025학년도 2학기 연구활동종사자 정기안전교육 이수율 집계표[최종]
D3: [기준: 2025.10.17.최종]
A4: 구 분 | B4: 대학/기관 | C4: 대상자(명) | D4: 이수자(명) | E4: 미이수자(명) | F4: 이수율(%)
A5: 교원 | B5: 교원/직원 | C5: ='2.집계표(구분2)'!C7 -> 155 | D5: ='2.집계표(구분2)'!D7 -> 37 | E5: =C5-D5 -> 118 | F5: =D5/C5 -> 0.2387096774
A6: 학부생 | B6: 전체 | C6: ='2.집계표(구분2)'!C13 -> 3439 | D6: ='2.집계표(구분2)'!D13 -> 820 | E6: =C6-D6 -> 2619 | F6: 0.2384414074
A7: 대학원생 | B7: 전체 | C7: ='2.집계표(구분2)'!C17 -> 644 | D7: ='2.집계표(구분2)'!D17 -> 211 | E7: =C7-D7 -> 433 | F7: 0.3276397516
A8: 연구원 | B8: 원주산학협력단 | C8: ='2.집계표(구분2)'!C19 -> 42 | D8: ='2.집계표(구분2)'!D19 -> 17 | E8: =C8-D8 -> 25 | F8: 0.4047619048
A9: 합계 | C9: =SUM(C5:C8) -> 4280 | D9: =SUM(D5:D8) -> 1085 | E9: =SUM(E5:E8) -> 3195 | F9: =D9/C9 -> 0.2535046729

Sheet 2.집계표(구분2)
A2: 2025학년도 2학기 연구활동종사자 정기안전교육 이수율 집계표
D3: ='1.집계표(구분1)'!D3:F3 -> [기준: 2025.10.17.최종]
A4: 구 분 | B4: 대학/기관 | C4: 대상자(명) | D4: 이수자(명) | E4: 미이수자(명) | F4: 이수율(%)
A5: 교원 | B5: 교원 | C5: ='3. 교육이수 현황(소속 기준)'!E5 -> 145 | D5: ='3. 교육이수 현황(소속 기준)'!F5 -> 34 | E5: =C5-D5 -> 111 | F5: =D5/C5 -> 0.2344827586
A6: 직원 | B6: 실습지원 직원 | C6: ='3. 교육이수 현황(소속 기준)'!E7 -> 10 | D6: ='3. 교육이수 현황(소속 기준)'!F7 -> 3 | E6: =C6-D6 -> 7 | F6: =D6/C6 -> 0.3
A7: 소 계 | C7: =SUM(C5:C6) -> 155 | D7: =SUM(D5:D6) -> 37 | E7: =SUM(C7-D7) -> 118 | F7: =D7/C7 -> 0.2387096774
A8: 학부생 | B8: 글로벌창의융합대학 디자인예술학부 | C8: ='3. 교육이수 현황(소속 기준)'!E71+'3. 교육이수 현황(소속 기준)'!E72+'3. 교육이수 현황(소속 기준)'!E73+'3. 교육이수 현황(소속 기준)'!E74+'3. 교육이수 현황(소속 기준)'!E75+'3. 교육이수 현황(소속 기준)'!E112+'3. 교육이수 현황(소속 기준)'!E113+'3. 교육이수 현황(소속 기준)'!E114+'3. 교육이수 현황(소속 기준)'!E115 -> 251 | D8: ='3. 교육이수 현황(소속 기준)'!F71+'3. 교육이수 현황(소속 기준)'!F72+'3. 교육이수 현황(소속 기준)'!F73+'3. 교육이수 현황(소속 기준)'!F74+'3. 교육이수 현황(소속 기준)'!F75+'3. 교육이수 현황(소속 기준)'!F112+'3. 교육이수 현황(소속 기준)'!F113+'3. 교육이수 현황(소속 기준)'!F114+'3. 교육이수 현황(소속 기준)'!F115 -> 35 | E8: =C8-D8 -> 216 | F8: =D8/C8 -> 0.1394422311
B9: 과학기술융합대학 (과학기술대학 포함) | C9: ='3. 교육이수 현황(소속 기준)'!E51+'3. 교육이수 현황(소속 기준)'!E52+'3. 교육이수 현황(소속 기준)'!E53+'3. 교육이수 현황(소속 기준)'!E54+'3. 교육이수 현황(소속 기준)'!E55+'3. 교육이수 현황(소속 기준)'!E59+'3. 교육이수 현황(소속 기준)'!E60+'3. 교육이수 현황(소속 기준)'!E61+'3. 교육이수 현황(소속 기준)'!E62+'3. 교육이수 현황(소속 기준)'!E63+'3. 교육이수 현황(소속 기준)'!E64+'3. 교육이수 현황(소속 기준)'!E65+'3. 교육이수 현황(소속 기준)'!E66+'3. 교육이수 현황(소속 기준)'!E67+'3. 교육이수 현황(소속 기준)'!E68+'3. 교육이수 현황(소속 기준)'!E69+'3. 교육이수 현황(소속 기준)'!E70+'3. 교육이수 현황(소속 기준)'!E89+'3. 교육이수 현황(소속 기준)'!E90 -> 586 | D9: ='3. 교육이수 현황(소속 기준)'!F51+'3. 교육이수 현황(소속 기준)'!F52+'3. 교육이수 현황(소속 기준)'!F53+'3. 교육이수 현황(소속 기준)'!F54+'3. 교육이수 현황(소속 기준)'!F55+'3. 교육이수 현황(소속 기준)'!F59+'3. 교육이수 현황(소속 기준)'!F60+'3. 교육이수 현황(소속 기준)'!F61+'3. 교육이수 현황(소속 기준)'!F62+'3. 교육이수 현황(소속 기준)'!F63+'3. 교육이수 현황(소속 기준)'!F64+'3. 교육이수 현황(소속 기준)'!F65+'3. 교육이수 현황(소속 기준)'!F66+'3. 교육이수 현황(소속 기준)'!F67+'3. 교육이수 현황(소속 기준)'!F68+'3. 교육이수 현황(소속 기준)'!F69+'3. 교육이수 현황(소속 기준)'!F70+'3. 교육이수 현황(소속 기준)'!F89+'3. 교육이수 현황(소속 기준)'!F90 -> 184 | E9: =C9-D9 -> 402 | F9: =D9/C9 -> 0.3139931741
B10: 소프트웨어디지털 헬스케어융합대학 [보건과학대학원 포함] | C10: ='3. 교육이수 현황(소속 기준)'!E17+'3. 교육이수 현황(소속 기준)'!E56+'3. 교육이수 현황(소속 기준)'!E57+'3. 교육이수 현황(소속 기준)'!E58+'3. 교육이수 현황(소속 기준)'!E79+'3. 교육이수 현황(소속 기준)'!E80+'3. 교육이수 현황(소속 기준)'!E81+'3. 교육이수 현황(소속 기준)'!E82+'3. 교육이수 현황(소속 기준)'!E83+'3. 교육이수 현황(소속 기준)'!E84+'3. 교육이수 현황(소속 기준)'!E85+'3. 교육이수 현황(소속 기준)'!E86+'3. 교육이수 현황(소속 기준)'!E87+'3. 교육이수 현황(소속 기준)'!E88+'3. 교육이수 현황(소속 기준)'!E91+'3. 교육이수 현황(소속 기준)'!E92+'3. 교육이수 현황(소속 기준)'!E93+'3. 교육이수 현황(소속 기준)'!E94+'3. 교육이수 현황(소속 기준)'!E95+'3. 교육이수 현황(소속 기준)'!E96+'3. 교육이수 현황(소속 기준)'!E97+'3. 교육이수 현황(소속 기준)'!E98+'3. 교육이수 현황(소속 기준)'!E99+'3. 교육이수 현황(소속 기준)'!E100+'3. 교육이수 현황(소속 기준)'!E101+'3. 교육이수 현황(소속 기준)'!E102+'3. 교육이수 현황(소속 기준)'!E103+'3. 교육이수 현황(소속 기준)'!E104+'3. 교육이수 현황(소속 기준)'!E105+'3. 교육이수 현황(소속 기준)'!E106+'3. 교육이수 현황(소속 기준)'!E107+'3. 교육이수 현황(소속 기준)'!E108+'3. 교육이수 현황(소속 기준)'!E109+'3. 교육이수 현황(소속 기준)'!E110+'3. 교육이수 현황(소속 기준)'!E111 -> 1683 | D10: ='3. 교육이수 현황(소속 기준)'!F17+'3. 교육이수 현황(소속 기준)'!F56+'3. 교육이수 현황(소속 기준)'!F57+'3. 교육이수 현황(소속 기준)'!F58+'3. 교육이수 현황(소속 기준)'!F79+'3. 교육이수 현황(소속 기준)'!F80+'3. 교육이수 현황(소속 기준)'!F81+'3. 교육이수 현황(소속 기준)'!F82+'3. 교육이수 현황(소속 기준)'!F83+'3. 교육이수 현황(소속 기준)'!F84+'3. 교육이수 현황(소속 기준)'!F85+'3. 교육이수 현황(소속 기준)'!F86+'3. 교육이수 현황(소속 기준)'!F87+'3. 교육이수 현황(소속 기준)'!F88+'3. 교육이수 현황(소속 기준)'!F91+'3. 교육이수 현황(소속 기준)'!F92+'3. 교육이수 현황(소속 기준)'!F93+'3. 교육이수 현황(소속 기준)'!F94+'3. 교육이수 현황(소속 기준)'!F95+'3. 교육이수 현황(소속 기준)'!F96+'3. 교육이수 현황(소속 기준)'!F97+'3. 교육이수 현황(소속 기준)'!F98+'3. 교육이수 현황(소속 기준)'!F99+'3. 교육이수 현황(소속 기준)'!F100+'3. 교육이수 현황(소속 기준)'!F101+'3. 교육이수 현황(소속 기준)'!F102+'3. 교육이수 현황(소속 기준)'!F103+'3. 교육이수 현황(소속 기준)'!F104+'3. 교육이수 현황(소속 기준)'!F105+'3. 교육이수 현황(소속 기준)'!F106+'3. 교육이수 현황(소속 기준)'!F107+'3. 교육이수 현황(소속 기준)'!F108+'3. 교육이수 현황(소속 기준)'!F109+'3. 교육이수 현황(소속 기준)'!F110+'3. 교육이수 현황(소속 기준)'!F111 -> 342 | E10: 1341 | F10: 0.2032085561
B11: RC융합대학 | C11: ='3. 교육이수 현황(소속 기준)'!E40+'3. 교육이수 현황(소속 기준)'!E41+'3. 교육이수 현황(소속 기준)'!E42+'3. 교육이수 현황(소속 기준)'!E43+'3. 교육이수 현황(소속 기준)'!E44+'3. 교육이수 현황(소속 기준)'!E45+'3. 교육이수 현황(소속 기준)'!E46+'3. 교육이수 현황(소속 기준)'!E47+'3. 교육이수 현황(소속 기준)'!E48+'3. 교육이수 현황(소속 기준)'!E49+'3. 교육이수 현황(소속 기준)'!E50 -> 800 | D11: ='3. 교육이수 현황(소속 기준)'!F40+'3. 교육이수 현황(소속 기준)'!F41+'3. 교육이수 현황(소속 기준)'!F42+'3. 교육이수 현황(소속 기준)'!F43+'3. 교육이수 현황(소속 기준)'!F44+'3. 교육이수 현황(소속 기준)'!F45+'3. 교육이수 현황(소속 기준)'!F46+'3. 교육이수 현황(소속 기준)'!F47+'3. 교육이수 현황(소속 기준)'!F48+'3. 교육이수 현황(소속 기준)'!F49+'3. 교육이수 현황(소속 기준)'!F50 -> 259 | E11: 541 | F11: 0.32375
B12: 반도체시스템공학부 | C12: ='3. 교육이수 현황(소속 기준)'!E76+'3. 교육이수 현황(소속 기준)'!E77+'3. 교육이수 현황(소속 기준)'!E78 -> 119 | D12: ='3. 교육이수 현황(소속 기준)'!F76+'3. 교육이수 현황(소속 기준)'!F77+'3. 교육이수 현황(소속 기준)'!F78 -> 0 | E12: 119 | F12: 0
A13: 소 계 | C13: =SUM(C8:C12) -> 3439 | D13: =SUM(D8:D12) -> 820 | E13: =SUM(C13-D13) -> 2619 | F13: =D13/C13 -> 0.2384414074
A14: 대학원생 | B14: 글로벌창의융합대학 디자인예술학부 | C14: ='3. 교육이수 현황(소속 기준)'!E19+'3. 교육이수 현황(소속 기준)'!E27+'3. 교육이수 현황(소속 기준)'!E29 -> 27 | D14: ='3. 교육이수 현황(소속 기준)'!F19+'3. 교육이수 현황(소속 기준)'!F27+'3. 교육이수 현황(소속 기준)'!F29 -> 0 | E14: =C14-D14 -> 27 | F14: =D14/C14 -> 0
B15: 과학기술융합대학 | C15: ='3. 교육이수 현황(소속 기준)'!E23+'3. 교육이수 현황(소속 기준)'!E28+'3. 교육이수 현황(소속 기준)'!E36+'3. 교육이수 현황(소속 기준)'!E37+'3. 교육이수 현황(소속 기준)'!E38+'3. 교육이수 현황(소속 기준)'!E39 -> 125 | D15: ='3. 교육이수 현황(소속 기준)'!F23+'3. 교육이수 현황(소속 기준)'!F28+'3. 교육이수 현황(소속 기준)'!F36+'3. 교육이수 현황(소속 기준)'!F37+'3. 교육이수 현황(소속 기준)'!F38+'3. 교육이수 현황(소속 기준)'!F39 -> 54 | E15: =C15-D15 -> 71 | F15: 0.432
B16: 소프트웨어디지털 헬스케어융합대학 [보건과학대학원 포함] | C16: ='3. 교육이수 현황(소속 기준)'!E8+'3. 교육이수 현황(소속 기준)'!E9+'3. 교육이수 현황(소속 기준)'!E10+'3. 교육이수 현황(소속 기준)'!E11+'3. 교육이수 현황(소속 기준)'!E12+'3. 교육이수 현황(소속 기준)'!E13+'3. 교육이수 현황(소속 기준)'!E14+'3. 교육이수 현황(소속 기준)'!E15+'3. 교육이수 현황(소속 기준)'!E16+'3. 교육이수 현황(소속 기준)'!E18+'3. 교육이수 현황(소속 기준)'!E20+'3. 교육이수 현황(소속 기준)'!E21+'3. 교육이수 현황(소속 기준)'!E22+'3. 교육이수 현황(소속 기준)'!E24+'3. 교육이수 현황(소속 기준)'!E25+'3. 교육이수 현황(소속 기준)'!E26++'3. 교육이수 현황(소속 기준)'!E30+'3. 교육이수 현황(소속 기준)'!E31+'3. 교육이수 현황(소속 기준)'!E32+'3. 교육이수 현황(소속 기준)'!E33+'3. 교육이수 현황(소속 기준)'!E34+'3. 교육이수 현황(소속 기준)'!E35 -> 492 | D16: ='3. 교육이수 현황(소속 기준)'!F8+'3. 교육이수 현황(소속 기준)'!F9+'3. 교육이수 현황(소속 기준)'!F10+'3. 교육이수 현황(소속 기준)'!F11+'3. 교육이수 현황(소속 기준)'!F12+'3. 교육이수 현황(소속 기준)'!F13+'3. 교육이수 현황(소속 기준)'!F14+'3. 교육이수 현황(소속 기준)'!F15+'3. 교육이수 현황(소속 기준)'!F16+'3. 교육이수 현황(소속 기준)'!F18+'3. 교육이수 현황(소속 기준)'!F20+'3. 교육이수 현황(소속 기준)'!F21+'3. 교육이수 현황(소속 기준)'!F22+'3. 교육이수 현황(소속 기준)'!F24+'3. 교육이수 현황(소속 기준)'!F25+'3. 교육이수 현황(소속 기준)'!F26++'3. 교육이수 현황(소속 기준)'!F30+'3. 교육이수 현황(소속 기준)'!F31+'3. 교육이수 현황(소속 기준)'!F32+'3. 교육이수 현황(소속 기준)'!F33+'3. 교육이수 현황(소속 기준)'!F34+'3. 교육이수 현황(소속 기준)'!F35 -> 157 | E16: =C16-D16 -> 335 | F16: 0.3191056911
A17: 소 계 | C17: =SUM(C14:C16) -> 644 | D17: =SUM(D14:D16) -> 211 | E17: =SUM(C17-D17) -> 433 | F17: 0.3276397516
A18: 연구원 | B18: 원주산학협력단 | C18: ='3. 교육이수 현황(소속 기준)'!E6 -> 42 | D18: ='3. 교육이수 현황(소속 기준)'!F6 -> 17 | E18: =C18-D18 -> 25 | F18: 0.4047619048
A19: 소 계 | C19: =C18 -> 42 | D19: =D18 -> 17 | E19: 25 | F19: =D19/C19 -> 0.4047619048
A20: 합계 | C20: =SUM(C7+C13+C17+C19) -> 4280 | D20: =SUM(D7+D13+D17+D19) -> 1085 | E20: =SUM(C20-D20) -> 3195 | F20: 0.2535046729

Sheet 3. 교육이수 현황(소속 기준)
A2: 2025학년도 2학기 연구활동종사자 정기안전교육 이수율 현황[소속 기준]
F3: [기준: 2025.10.17.최종]
A4: 순번 | B4: 소속1 | C4: 소속2 | D4: 소속3 | E4: 대상자 | F4: 이수자 | G4: 미이수자 | H4: 이수율
A5: 1 | B5: 교직원 | C5: 전임교원 | D5: 전임교원 | E5: 145 | F5: 34 | G5: =E5-F5 -> 111 | H5: =F5/E5 -> 0.2344827586
A6: 2 | B6: 소속외연구실 | C6: 원주산학협력단 | D6: 원주산학협력단 | E6: 42 | F6: 17 | G6: =E6-F6 -> 25 | H6: =F6/E6 -> 0.4047619048
A7: 3 | B7: 직원 | C7: 실습지원 직원 | D7: 실습지원 직원 | E7: 10 | F7: 3 | G7: 7 | H7: 0.3
A8: 4 | B8: 보건과학대학원 | C8: 보건과학대학원 | D8: 과학수사학전공 | E8: 19 | F8: 0 | G8: =E8-F8 -> 19 | H8: =F8/E8 -> 0
A9: 5 | B9: 보건과학대학원 | C9: 보건과학대학원 | D9: 구강건강증진학전공 | E9: 10 | F9: 7 | G9: 3 | H9: 0.7
A10: 6 | B10: 보건과학대학원 | C10: 보건과학대학원 | D10: 보건관리학전공 | E10: 21 | F10: 0 | G10: 21 | H10: 0
A11: 7 | B11: 보건과학대학원 | C11: 보건과학대학원 | D11: 의생명과학전공 | E11: 18 | F11: 3 | G11: 15 | H11: 0.1666666667
A12: 8 | B12: 보건과학대학원 | C12: 보건과학대학원 | D12: 인간공학치료학전공 | E12: 13 | F12: 0 | G12: 13 | H12: 0
A13: 9 | B13: 보건과학대학원 | C13: 보건과학대학원 | D13: 헬스케어융합학전공 | E13: 8 | F13: 0 | G13: 8 | H13: 0
A14: 10 | B14: 보건과학대학원 | C14: 보건과학대학원 | D14: 환경공학전공 | E14: 11 | F14: 0 | G14: 11 | H14: 0
A15: 11 | B15: 보건환경대학원 | C15: 보건환경대학원 | D15: 보건관리학전공 | E15: 1 | F15: 0 | G15: 1 | H15: 0
A16: 12 | B16: 보건환경대학원 | C16: 보건환경대학원 | D16: 의생명과학전공 | E16: 1 | F16: 0 | G16: 1 | H16: 0
A17: 13 | B17: 의과대학(치위생) | C17: 원주의과대학 | D17: 치위생학과 | E17: 5 | F17: 4 | G17: 1 | H17: 0.8
A18: 14 | B18: 일반대학원 | C18: 일반대학원(원주) | D18: YM-KIST 바이오헬스융합학과 | E18: 1 | F18: 0 | G18: 1 | H18: 0
A19: 15 | B19: 일반대학원 | C19: 일반대학원(원주) | D19: 디자인경영학협동과정 | E19: 1 | F19: 0 | G19: 1 | H19: 0
A20: 16 | B20: 일반대학원 | C20: 일반대학원(원주) | D20: 디지털헬스케어학과 | E20: 5 | F20: 0 | G20: 5 | H20: 0
A21: 17 | B21: 일반대학원 | C21: 일반대학원(원주) | D21: 로보틱아트학과 | E21: 1 | F21: 1 | G21: 0 | H21: 1
A22: 18 | B22: 일반대학원 | C22: 일반대학원(원주) | D22: 물리치료학과 | E22: 65 | F22: 13 | G22: 52 | H22: 0.2
A23: 19 | B23: 일반대학원 | C23: 일반대학원(원주) | D23: 물리학과 | E23: 3 | F23: 0 | G23: 3 | H23: 0
A24: 20 | B24: 일반대학원 | C24: 일반대학원(원주) | D24: 방사선융합공학과 | E24: 37 | F24: 3 | G24: 34 | H24: 0.08108108108
A25: 21 | B25: 일반대학원 | C25: 일반대학원(원주) | D25: 보건정책 및 관리학협동과정 | E25: 15 | F25: 0 | G25: 15 | H25: 0
A26: 22 | B26: 일반대학원 | C26: 일반대학원(원주) | D26: 보건행정학과 | E26: 50 | F26: 13 | G26: 37 | H26: 0.26
A27: 23 | B27: 일반대학원 | C27: 일반대학원(원주) | D27: 산업디자인학과 | E27: 9 | F27: 0 | G27: 9 | H27: 0
A28: 24 | B28: 일반대학원 | C28: 일반대학원(원주) | D28: 생명과학기술학 | E28: 20 | F28: 6 | G28: 14 | H28: 0.3
A29: 25 | B29: 일반대학원 | C29: 일반대학원(원주) | D29: 시각디자인학과 | E29: 17 | F29: 0 | G29: 17 | H29: 0
A30: 26 | B30: 일반대학원 | C30: 일반대학원(원주) | D30: 의공학과 | E30: 65 | F30: 44 | G30: 21 | H30: 0.6769230769
A31: 27 | B31: 일반대학원 | C31: 일반대학원(원주) | D31: 임상병리학과 | E31: 21 | F31: 17 | G31: 4 | H31: 0.8095238095
A32: 28 | B32: 일반대학원 | C32: 일반대학원(원주) | D32: 작업치료학과 | E32: 57 | F32: 40 | G32: 17 | H32: 0.701754386
A33: 29 | B33: 일반대학원 | C33: 일반대학원(원주) | D33: 전산학과 | E33: 43 | F33: 3 | G33: 40 | H33: 0.06976744186
A34: 30 | B34: 일반대학원 | C34: 일반대학원(원주) | D34: 정보통계학과 | E34: 7 | F34: 0 | G34: 7 | H34: 0
A35: 31 | B35: 일반대학원 | C35: 일반대학원(원주) | D35: 치위생학과 | E35: 23 | F35: 13 | G35: 10 | H35: 0.5652173913
A36: 32 | B36: 일반대학원 | C36: 일반대학원(원주) | D36: 패키징학과 | E36: 35 | F36: 4 | G36: 31 | H36: 0.1142857143
A37: 33 | B37: 일반대학원 | C37: 일반대학원(원주) | D37: 화학과 | E37: 24 | F37: 22 | G37: 2 | H37: 0.9166666667
A38: 34 | B38: 일반대학원 | C38: 일반대학원(원주) | D38: 환경공학과 | E38: 13 | F38: 5 | G38: 8 | H38: 0.3846153846
A39: 35 | B39: 일반대학원 | C39: 일반대학원(원주) | D39: 환경에너지공학과 | E39: 30 | F39: 17 | G39: 13 | H39: 0.5666666667
A40: 36 | B40: 학부(미래) | C40: RC융합대학 | D40: AI반도체학부 | E40: 82 | F40: 1 | G40: 81 | H40: 0.01219512195
A41: 37 | B41: 학부(미래) | C41: RC융합대학 | D41: 데이터사이언스학부 | E41: 37 | F41: 4 | G41: 33 | H41: 0.1081081081
A42: 38 | B42: 학부(미래) | C42: RC융합대학 | D42: 디자인예술학부 | E42: 67 | F42: 1 | G42: 66 | H42: 0.01492537313
A43: 39 | B43: 학부(미래) | C43: RC융합대학 | D43: 디지털헬스케어학부 | E43: 50 | F43: 0 | G43: 50 | H43: 0
A44: 40 | B44: 학부(미래) | C44: RC융합대학 | D44: 물리치료학과 | E44: 69 | F44: 42 | G44: 27 | H44: 0.6086956522
A45: 41 | B45: 학부(미래) | C45: RC융합대학 | D45: 방사선학과 | E45: 34 | F45: 0 | G45: 34 | H45: 0
A46: 42 | B46: 학부(미래) | C46: RC융합대학 | D46: 소프트웨어학부 | E46: 114 | F46: 1 | G46: 113 | H46: 0.008771929825
A47: 43 | B47: 학부(미래) | C47: RC융합대학 | D47: 임상병리학과 | E47: 47 | F47: 3 | G47: 44 | H47: 0.06382978723
A48: 44 | B48: 학부(미래) | C48: RC융합대학 | D48: 자율융합계열 | E48: 236 | F48: 180 | G48: 56 | H48: 0.7627118644
A49: 45 | B49: 학부(미래) | C49: RC융합대학 | D49: 작업치료학과 | E49: 37 | F49: 0 | G49: 37 | H49: 0
A50: 46 | B50: 학부(미래) | C50: RC융합대학 | D50: 치위생학과 | E50: 27 | F50: 27 | G50: 0 | H50: 1
A51: 47 | B51: 학부(미래) | C51: 과학기술대학 | D51: 물리학 | E51: 11 | F51: 0 | G51: 11 | H51: 0
A52: 48 | B52: 학부(미래) | C52: 과학기술대학 | D52: 생명과학 | E52: 8 | F52: 0 | G52: 8 | H52: 0
A53: 49 | B53: 학부(미래) | C53: 과학기술대학 | D53: 생명과학기술학부 | E53: 4 | F53: 1 | G53: 3 | H53: 0.25
A54: 50 | B54: 학부(미래) | C54: 과학기술대학 | D54: 수학 | E54: 6 | F54: 0 | G54: 6 | H54: 0
A55: 51 | B55: 학부(미래) | C55: 과학기술대학 | D55: 응용생명과학 | E55: 20 | F55: 4 | G55: 16 | H55: 0.2
A56: 52 | B56: 학부(미래) | C56: 과학기술대학 | D56: 정보통계학 | E56: 22 | F56: 1 | G56: 21 | H56: 0.04545454545
A57: 53 | B57: 학부(미래) | C57: 과학기술대학 | D57: 컴퓨터공학 | E57: 8 | F57: 0 | G57: 8 | H57: 0
A58: 54 | B58: 학부(미래) | C58: 과학기술대학 | D58: 컴퓨터정보통신공학부 | E58: 60 | F58: 0 | G58: 60 | H58: 0
A59: 55 | B59: 학부(미래) | C59: 과학기술대학 | D59: 패키징학 | E59: 16 | F59: 2 | G59: 14 | H59: 0.125
A60: 56 | B60: 학부(미래) | C60: 과학기술대학 | D60: 화학및의화학 | E60: 34 | F60: 11 | G60: 23 | H60: 0.3235294118
A61: 57 | B61: 학부(미래) | C61: 과학기술융합대학 | D61: AI반도체학전공 | E61: 2 | F61: 0 | G61: 2 | H61: 0
A62: 58 | B62: 학부(미래) | C62: 과학기술융합대학 | D62: 물리및공학물리학전공 | E62: 42 | F62: 5 | G62: 37 | H62: 0.119047619
A63: 59 | B63: 학부(미래) | C63: 과학기술융합대학 | D63: 생명과학기술학부 | E63: 4 | F63: 1 | G63: 3 | H63: 0.25
A64: 60 | B64: 학부(미래) | C64: 과학기술융합대학 | D64: 생명과학기술학전공 | E64: 149 | F64: 49 | G64: 100 | H64: 0.3288590604
A65: 61 | B65: 학부(미래) | C65: 과학기술융합대학 | D65: 친환경에너지공학전공 | E65: 46 | F65: 10 | G65: 36 | H65: 0.2173913043
A66: 62 | B66: 학부(미래) | C66: 과학기술융합대학 | D66: 패키징및물류학심화전공 | E66: 1 | F66: 0 | G66: 1 | H66: 0
A67: 63 | B67: 학부(미래) | C67: 과학기술융합대학 | D67: 패키징및물류학전공 | E67: 47 | F67: 11 | G67: 36 | H67: 0.2340425532
A68: 64 | B68: 학부(미래) | C68: 과학기술융합대학 | D68: 화학및의화학전공 | E68: 103 | F68: 70 | G68: 33 | H68: 0.6796116505
A69: 65 | B69: 학부(미래) | C69: 과학기술융합대학 | D69: 환경공학전공 | E69: 48 | F69: 16 | G69: =E69-F69 -> 32 | H69: 0.3333333333
A70: 66 | B70: 학부(미래) | C70: 과학기술융합대학 | D70: 환경에너지공학부 | E70: 3 | F70: 0 | G70: 3 | H70: =F70/E70 -> 0
A71: 67 | B71: 학부(미래) | C71: 글로벌창의융합대학 | D71: 고위자과정 | E71: 1 | F71: 1 | G71: 0 | H71: 1
A72: 68 | B72: 학부(미래) | C72: 글로벌창의융합대학 | D72: 디자인예술학부 | E72: 2 | F72: 0 | G72: 2 | H72: 0
A73: 69 | B73: 학부(미래) | C73: 글로벌창의융합대학 | D73: 디지털아트학전공 | E73: 27 | F73: 4 | G73: 23 | H73: 0.1481481481
A74: 70 | B74: 학부(미래) | C74: 글로벌창의융합대학 | D74: 산업디자인학전공 | E74: 41 | F74: 3 | G74: 38 | H74: 0.07317073171
A75: 71 | B75: 학부(미래) | C75: 글로벌창의융합대학 | D75: 시각디자인학 | E75: 106 | F75: 18 | G75: 88 | H75: 0.1698113208
A76: 72 | B76: 학부(미래) | C76: 반도체시스템공학부 | D76: 반도체시스템융합공학전공 | E76: 30 | F76: 0 | G76: 30 | H76: 0
A77: 73 | B77: 학부(미래) | C77: 반도체시스템공학부 | D77: 반도체인프라및환경융합전공 | E77: 30 | F77: 0 | G77: 30 | H77: 0
A78: 74 | B78: 학부(미래) | C78: 반도체시스템공학부 | D78: 응용전기전자융합공학전공 | E78: 59 | F78: 0 | G78: 59 | H78: 0
A79: 75 | B79: 학부(미래) | C79: 보건과학대학 | D79: 물리치료학과 | E79: 27 | F79: 1 | G79: 26 | H79: 0.03703703704
A80: 76 | B80: 학부(미래) | C80: 보건과학대학 | D80: 방사선학과 | E80: 14 | F80: 0 | G80: 14 | H80: 0
A81: 77 | B81: 학부(미래) | C81: 보건과학대학 | D81: 보건.환경.의공학부 | E81: 1 | F81: 1 | G81: 0 | H81: 1
A82: 78 | B82: 학부(미래) | C82: 보건과학대학 | D82: 보건과학부 분자진단과학전공 | E82: 15 | F82: 6 | G82: 9 | H82: 0.4
A83: 79 | B83: 학부(미래) | C83: 보건과학대학 | D83: 보건과학부 재활보건학전공 | E83: 1 | F83: 0 | G83: 1 | H83: 0
A84: 80 | B84: 학부(미래) | C84: 보건과학대학 | D84: 보건행정학과 | E84: 17 | F84: 0 | G84: 17 | H84: 0
A85: 81 | B85: 학부(미래) | C85: 보건과학대학 | D85: 의공학부 | E85: 50 | F85: 5 | G85: 45 | H85: 0.1
A86: 82 | B86: 학부(미래) | C86: 보건과학대학 | D86: 의료시스템공학 | E86: 4 | F86: 1 | G86: 3 | H86: 0.25
A87: 83 | B87: 학부(미래) | C87: 보건과학대학 | D87: 임상병리학과 | E87: 11 | F87: 10 | G87: 1 | H87: 0.9090909091
A88: 84 | B88: 학부(미래) | C88: 보건과학대학 | D88: 작업치료학과 | E88: 5 | F88: 0 | G88: 5 | H88: 0
A89: 85 | B89: 학부(미래) | C89: 보건과학대학 | D89: 환경공학 | E89: 1 | F89: 0 | G89: 1 | H89: 0
A90: 86 | B90: 학부(미래) | C90: 보건과학대학 | D90: 환경공학부 | E90: 41 | F90: 4 | G90: 37 | H90: 0.09756097561
A91: 87 | B91: 학부(미래) | C91: 소프트웨어디지털헬스케어융합대학 | D91: AI보건정보관리학과 | E91: 29 | F91: 0 | G91: 29 | H91: 0
A92: 88 | B92: 학부(미래) | C92: 소프트웨어디지털헬스케어융합대학 | D92: 데이터사이언스학부 | E92: 2 | F92: 0 | G92: 2 | H92: 0
A93: 89 | B93: 학부(미래) | C93: 소프트웨어디지털헬스케어융합대학 | D93: 데이터사이언스학전공 | E93: 60 | F93: 0 | G93: 60 | H93: 0
A94: 90 | B94: 학부(미래) | C94: 소프트웨어디지털헬스케어융합대학 | D94: 디지털헬스케어전공 | E94: 105 | F94: 0 | G94: 105 | H94: 0
A95: 91 | B95: 학부(미래) | C95: 소프트웨어디지털헬스케어융합대학 | D95: 디지털헬스케어학부 | E95: 2 | F95: 0 | G95: 2 | H95: 0
A96: 92 | B96: 학부(미래) | C96: 소프트웨어디지털헬스케어융합대학 | D96: 물리치료학과 | E96: 87 | F96: 2 | G96: 85 | H96: 0.02298850575
A97: 93 | B97: 학부(미래) | C97: 소프트웨어디지털헬스케어융합대학 | D97: 바이오공학전공 | E97: 41 | F97: 6 | G97: 35 | H97: 0.1463414634
A98: 94 | B98: 학부(미래) | C98: 소프트웨어디지털헬스케어융합대학 | D98: 방사선학과 | E98: 115 | F98: 6 | G98: 109 | H98: 0.05217391304
A99: 95 | B99: 학부(미래) | C99: 소프트웨어디지털헬스케어융합대학 | D99: 보건과학부 | E99: 1 | F99: 0 | G99: 1 | H99: 0
A100: 96 | B100: 학부(미래) | C100: 소프트웨어디지털헬스케어융합대학 | D100: 보건과학부 재활보건학전공 | E100: 38 | F100: 0 | G100: 38 | H100: =F100/E100 -> 0
A101: 97 | B101: 학부(미래) | C101: 소프트웨어디지털헬스케어융합대학 | D101: 보건의료정보관리학전공 | E101: 28 | F101: 0 | G101: 28 | H101: 0
A102: 98 | B102: 학부(미래) | C102: 소프트웨어디지털헬스케어융합대학 | D102: 보건행정학부 | E102: 5 | F102: 0 | G102: 5 | H102: 0
A103: 99 | B103: 학부(미래) | C103: 소프트웨어디지털헬스케어융합대학 | D103: 보건행정학전공 | E103: 112 | F103: 7 | G103: 105 | H103: 0.0625
A104: 100 | B104: 학부(미래) | C104: 소프트웨어디지털헬스케어융합대학 | D104: 소프트웨어전공 | E104: 280 | F104: 1 | G104: 279 | H104: 0.003571428571
A105: 101 | B105: 학부(미래) | C105: 소프트웨어디지털헬스케어융합대학 | D105: 소프트웨어학부 | E105: 6 | F105: 0 | G105: 6 | H105: 0
A106: 102 | B106: 학부(미래) | C106: 소프트웨어디지털헬스케어융합대학 | D106: 의공학부 | E106: 2 | F106: 0 | G106: 2 | H106: 0
A107: 103 | B107: 학부(미래) | C107: 소프트웨어디지털헬스케어융합대학 | D107: 의공학전공 | E107: 159 | F107: 52 | G107: 107 | H107: 0.3270440252
A108: 104 | B108: 학부(미래) | C108: 소프트웨어디지털헬스케어융합대학 | D108: 임상병리학과 | E108: 160 | F108: 155 | G108: 5 | H108: =F108/E108 -> 0.96875
A109: 105 | B109: 학부(미래) | C109: 소프트웨어디지털헬스케어융합대학 | D109: 작업치료학과 | E109: 107 | F109: 2 | G109: 105 | H109: 0.01869158879
A110: 106 | B110: 학부(미래) | C110: 소프트웨어디지털헬스케어융합대학 | D110: 치위생학과 | E110: 84 | F110: 82 | G110: 2 | H110: 0.9761904762
A111: 107 | B111: 학부(미래) | C111: 소프트웨어디지털헬스케어융합대학 | D111: 헬스케어빅데이터전공 | E111: 20 | F111: 0 | G111: 20 | H111: 0
A112: 108 | B112: 학부(미래) | C112: 인문예술대학 | D112: 디자인예술학부 | E112: 68 | F112: 8 | G112: 60 | H112: 0.1176470588
A113: 109 | B113: 학부(미래) | C113: 인문예술대학 | D113: 디지털아트학 | E113: 1 | F113: 0 | G113: 1 | H113: 0
A114: 110 | B114: 학부(미래) | C114: 인문예술대학 | D114: 산업디자인학 | E114: 1 | F114: 0 | G114: 1 | H114: 0
A115: 111 | B115: 학부(미래) | C115: 인문예술대학 | D115: 시각디자인학 | E115: 4 | F115: 1 | G115: 3 | H115: 0.25
A116: 합계(명) | E116: =SUM(E5:E115) -> 4280 | F116: =SUM(F5:F115) -> 1085 | G116: 3195 | H116: 0.2535046729

Sheet 4. 교육이수 현황(이수율 기준)
A2: 2025학년도 2학기 연구활동종사자 정기안전교육 이수율 현황[이수율 기준]
E3: [기준: 2025.10.17.최종]
A4: 순번 | B4: 소속1 | C4: 소속2 | D4: 소속3 | E4: 대상자 | F4: 이수자 | G4: 미이수자 | H4: 이수율
A5: 1 | B5: 학부(미래) | C5: RC융합대학 | D5: 치위생학과 | E5: 27 | F5: 27 | G5: 0 | H5: 1
A6: 2 | B6: 일반대학원 | C6: 일반대학원(원주) | D6: 로보틱아트학과 | E6: 1 | F6: 1 | G6: 0 | H6: 1
A7: 3 | B7: 학부(미래) | C7: 글로벌창의융합대학 | D7: 고위자과정 | E7: 1 | F7: 1 | G7: 0 | H7: 1
A8: 4 | B8: 학부(미래) | C8: 보건과학대학 | D8: 보건.환경.의공학부 | E8: 1 | F8: 1 | G8: 0 | H8: 1
A9: 5 | B9: 학부(미래) | C9: 소프트웨어디지털헬스케어융합대학 | D9: 치위생학과 | E9: 84 | F9: 82 | G9: 2 | H9: 0.9761904762
A10: 6 | B10: 학부(미래) | C10: 소프트웨어디지털헬스케어융합대학 | D10: 임상병리학과 | E10: 160 | F10: 155 | G10: 5 | H10: 0.96875
A11: 7 | B11: 일반대학원 | C11: 일반대학원(원주) | D11: 화학과 | E11: 24 | F11: 22 | G11: 2 | H11: 0.9166666667
A12: 8 | B12: 학부(미래) | C12: 보건과학대학 | D12: 임상병리학과 | E12: 11 | F12: 10 | G12: 1 | H12: 0.9090909091
A13: 9 | B13: 일반대학원 | C13: 일반대학원(원주) | D13: 임상병리학과 | E13: 21 | F13: 17 | G13: 4 | H13: 0.8095238095
A14: 10 | B14: 의과대학(치위생) | C14: 원주의과대학 | D14: 치위생학과 | E14: 5 | F14: 4 | G14: 1 | H14: 0.8
A15: 11 | B15: 학부(미래) | C15: RC융합대학 | D15: 자율융합계열 | E15: 236 | F15: 180 | G15: 56 | H15: 0.7627118644
A16: 12 | B16: 일반대학원 | C16: 일반대학원(원주) | D16: 작업치료학과 | E16: 57 | F16: 40 | G16: 17 | H16: 0.701754386
A17: 13 | B17: 보건과학대학원 | C17: 보건과학대학원 | D17: 구강건강증진학전공 | E17: 10 | F17: 7 | G17: 3 | H17: 0.7
A18: 14 | B18: 학부(미래) | C18: 과학기술융합대학 | D18: 화학및의화학전공 | E18: 103 | F18: 70 | G18: 33 | H18: 0.6796116505
A19: 15 | B19: 일반대학원 | C19: 일반대학원(원주) | D19: 의공학과 | E19: 65 | F19: 44 | G19: 21 | H19: 0.6769230769
A20: 16 | B20: 학부(미래) | C20: RC융합대학 | D20: 물리치료학과 | E20: 69 | F20: 42 | G20: 27 | H20: 0.6086956522
A21: 17 | B21: 일반대학원 | C21: 일반대학원(원주) | D21: 환경에너지공학과 | E21: 30 | F21: 17 | G21: 13 | H21: 0.5666666667
A22: 18 | B22: 일반대학원 | C22: 일반대학원(원주) | D22: 치위생학과 | E22: 23 | F22: 13 | G22: 10 | H22: 0.5652173913
A23: 19 | B23: 소속외연구실 | C23: 원주산학협력단 | D23: 원주산학협력단 | E23: 42 | F23: 17 | G23: 25 | H23: 0.4047619048
A24: 20 | B24: 학부(미래) | C24: 보건과학대학 | D24: 보건과학부 분자진단과학전공 | E24: 15 | F24: 6 | G24: 9 | H24: 0.4
A25: 21 | B25: 일반대학원 | C25: 일반대학원(원주) | D25: 환경공학과 | E25: 13 | F25: 5 | G25: 8 | H25: 0.3846153846
A26: 22 | B26: 학부(미래) | C26: 과학기술융합대학 | D26: 환경공학전공 | E26: 48 | F26: 16 | G26: 32 | H26: 0.3333333333
A27: 23 | B27: 학부(미래) | C27: 과학기술융합대학 | D27: 생명과학기술학전공 | E27: 149 | F27: 49 | G27: 100 | H27: 0.3288590604
A28: 24 | B28: 학부(미래) | C28: 소프트웨어디지털헬스케어융합대학 | D28: 의공학전공 | E28: 159 | F28: 52 | G28: 107 | H28: 0.3270440252
A29: 25 | B29: 학부(미래) | C29: 과학기술대학 | D29: 화학및의화학 | E29: 34 | F29: 11 | G29: 23 | H29: 0.3235294118
A30: 26 | B30: 일반대학원 | C30: 일반대학원(원주) | D30: 생명과학기술학 | E30: 20 | F30: 6 | G30: 14 | H30: 0.3
A31: 27 | B31: 직원 | C31: 실습지원 직원 | D31: 실습지원 직원 | E31: 10 | F31: 3 | G31: 7 | H31: 0.3
A32: 28 | B32: 일반대학원 | C32: 일반대학원(원주) | D32: 보건행정학과 | E32: 50 | F32: 13 | G32: 37 | H32: 0.26
A33: 29 | B33: 학부(미래) | C33: 과학기술대학 | D33: 생명과학기술학부 | E33: 4 | F33: 1 | G33: 3 | H33: 0.25
A34: 30 | B34: 학부(미래) | C34: 과학기술융합대학 | D34: 생명과학기술학부 | E34: 4 | F34: 1 | G34: 3 | H34: 0.25
A35: 31 | B35: 학부(미래) | C35: 보건과학대학 | D35: 의료시스템공학 | E35: 4 | F35: 1 | G35: 3 | H35: 0.25
A36: 32 | B36: 학부(미래) | C36: 인문예술대학 | D36: 시각디자인학 | E36: 4 | F36: 1 | G36: 3 | H36: 0.25
A37: 33 | B37: 교직원 | C37: 전임교원 | D37: 전임교원 | E37: 145 | F37: 34 | G37: 111 | H37: 0.2344827586
A38: 34 | B38: 학부(미래) | C38: 과학기술융합대학 | D38: 패키징및물류학전공 | E38: 47 | F38: 11 | G38: 36 | H38: 0.2340425532
A39: 35 | B39: 학부(미래) | C39: 과학기술융합대학 | D39: 친환경에너지공학전공 | E39: 46 | F39: 10 | G39: 36 | H39: 0.2173913043
A40: 36 | B40: 일반대학원 | C40: 일반대학원(원주) | D40: 물리치료학과 | E40: 65 | F40: 13 | G40: 52 | H40: 0.2
A41: 37 | B41: 학부(미래) | C41: 과학기술대학 | D41: 응용생명과학 | E41: 20 | F41: 4 | G41: 16 | H41: 0.2
A42: 38 | B42: 학부(미래) | C42: 글로벌창의융합대학 | D42: 시각디자인학 | E42: 106 | F42: 18 | G42: 88 | H42: 0.1698113208
A43: 39 | B43: 보건과학대학원 | C43: 보건과학대학원 | D43: 의생명과학전공 | E43: 18 | F43: 3 | G43: 15 | H43: 0.1666666667
A44: 40 | B44: 학부(미래) | C44: 글로벌창의융합대학 | D44: 디지털아트학전공 | E44: 27 | F44: 4 | G44: 23 | H44: 0.1481481481
A45: 41 | B45: 학부(미래) | C45: 소프트웨어디지털헬스케어융합대학 | D45: 바이오공학전공 | E45: 41 | F45: 6 | G45: 35 | H45: 0.1463414634
A46: 42 | B46: 학부(미래) | C46: 과학기술대학 | D46: 패키징학 | E46: 16 | F46: 2 | G46: 14 | H46: 0.125
A47: 43 | B47: 학부(미래) | C47: 과학기술융합대학 | D47: 물리및공학물리학전공 | E47: 42 | F47: 5 | G47: 37 | H47: 0.119047619
A48: 44 | B48: 학부(미래) | C48: 인문예술대학 | D48: 디자인예술학부 | E48: 68 | F48: 8 | G48: 60 | H48: 0.1176470588
A49: 45 | B49: 일반대학원 | C49: 일반대학원(원주) | D49: 패키징학과 | E49: 35 | F49: 4 | G49: 31 | H49: 0.1142857143
A50: 46 | B50: 학부(미래) | C50: RC융합대학 | D50: 데이터사이언스학부 | E50: 37 | F50: 4 | G50: 33 | H50: 0.1081081081
A51: 47 | B51: 학부(미래) | C51: 보건과학대학 | D51: 의공학부 | E51: 50 | F51: 5 | G51: 45 | H51: 0.1
A52: 48 | B52: 학부(미래) | C52: 보건과학대학 | D52: 환경공학부 | E52: 41 | F52: 4 | G52: 37 | H52: 0.09756097561
A53: 49 | B53: 일반대학원 | C53: 일반대학원(원주) | D53: 방사선융합공학과 | E53: 37 | F53: 3 | G53: 34 | H53: 0.08108108108
A54: 50 | B54: 학부(미래) | C54: 글로벌창의융합대학 | D54: 산업디자인학전공 | E54: 41 | F54: 3 | G54: 38 | H54: 0.07317073171
A55: 51 | B55: 일반대학원 | C55: 일반대학원(원주) | D55: 전산학과 | E55: 43 | F55: 3 | G55: 40 | H55: 0.06976744186
A56: 52 | B56: 학부(미래) | C56: RC융합대학 | D56: 임상병리학과 | E56: 47 | F56: 3 | G56: 44 | H56: 0.06382978723
A57: 53 | B57: 학부(미래) | C57: 소프트웨어디지털헬스케어융합대학 | D57: 보건행정학전공 | E57: 112 | F57: 7 | G57: 105 | H57: 0.0625
A58: 54 | B58: 학부(미래) | C58: 소프트웨어디지털헬스케어융합대학 | D58: 방사선학과 | E58: 115 | F58: 6 | G58: 109 | H58: 0.05217391304
A59: 55 | B59: 학부(미래) | C59: 과학기술대학 | D59: 정보통계학 | E59: 22 | F59: 1 | G59: 21 | H59: 0.04545454545
A60: 56 | B60: 학부(미래) | C60: 보건과학대학 | D60: 물리치료학과 | E60: 27 | F60: 1 | G60: 26 | H60: 0.03703703704
A61: 57 | B61: 학부(미래) | C61: 소프트웨어디지털헬스케어융합대학 | D61: 물리치료학과 | E61: 87 | F61: 2 | G61: 85 | H61: 0.02298850575
A62: 58 | B62: 학부(미래) | C62: 소프트웨어디지털헬스케어융합대학 | D62: 작업치료학과 | E62: 107 | F62: 2 | G62: 105 | H62: 0.01869158879
A63: 59 | B63: 학부(미래) | C63: RC융합대학 | D63: 디자인예술학부 | E63: 67 | F63: 1 | G63: 66 | H63: 0.01492537313
A64: 60 | B64: 학부(미래) | C64: RC융합대학 | D64: AI반도체학부 | E64: 82 | F64: 1 | G64: 81 | H64: 0.01219512195
A65: 61 | B65: 학부(미래) | C65: RC융합대학 | D65: 소프트웨어학부 | E65: 114 | F65: 1 | G65: 113 | H65: 0.008771929825
A66: 62 | B66: 학부(미래) | C66: 소프트웨어디지털헬스케어융합대학 | D66: 소프트웨어전공 | E66: 280 | F66: 1 | G66: 279 | H66: 0.003571428571
A67: 63 | B67: 학부(미래) | C67: 소프트웨어디지털헬스케어융합대학 | D67: 디지털헬스케어전공 | E67: 105 | F67: 0 | G67: 105 | H67: 0
A68: 64 | B68: 학부(미래) | C68: 과학기술대학 | D68: 컴퓨터정보통신공학부 | E68: 60 | F68: 0 | G68: 60 | H68: 0
A69: 65 | B69: 학부(미래) | C69: 소프트웨어디지털헬스케어융합대학 | D69: 데이터사이언스학전공 | E69: 60 | F69: 0 | G69: 60 | H69: 0
A70: 66 | B70: 학부(미래) | C70: 반도체시스템공학부 | D70: 응용전기전자융합공학전공 | E70: 59 | F70: 0 | G70: 59 | H70: 0
A71: 67 | B71: 학부(미래) | C71: RC융합대학 | D71: 디지털헬스케어학부 | E71: 50 | F71: 0 | G71: 50 | H71: 0
A72: 68 | B72: 학부(미래) | C72: 소프트웨어디지털헬스케어융합대학 | D72: 보건과학부 재활보건학전공 | E72: 38 | F72: 0 | G72: 38 | H72: 0
A73: 69 | B73: 학부(미래) | C73: RC융합대학 | D73: 작업치료학과 | E73: 37 | F73: 0 | G73: 37 | H73: 0
A74: 70 | B74: 학부(미래) | C74: RC융합대학 | D74: 방사선학과 | E74: 34 | F74: 0 | G74: 34 | H74: 0
A75: 71 | B75: 학부(미래) | C75: 반도체시스템공학부 | D75: 반도체시스템융합공학전공 | E75: 30 | F75: 0 | G75: 30 | H75: 0
A76: 72 | B76: 학부(미래) | C76: 반도체시스템공학부 | D76: 반도체인프라및환경융합전공 | E76: 30 | F76: 0 | G76: 30 | H76: 0
A77: 73 | B77: 학부(미래) | C77: 소프트웨어디지털헬스케어융합대학 | D77: AI보건정보관리학과 | E77: 29 | F77: 0 | G77: 29 | H77: 0
A78: 74 | B78: 학부(미래) | C78: 소프트웨어디지털헬스케어융합대학 | D78: 보건의료정보관리학전공 | E78: 28 | F78: 0 | G78: 28 | H78: 0
A79: 75 | B79: 보건과학대학원 | C79: 보건과학대학원 | D79: 보건관리학전공 | E79: 21 | F79: 0 | G79: 21 | H79: 0
A80: 76 | B80: 학부(미래) | C80: 소프트웨어디지털헬스케어융합대학 | D80: 헬스케어빅데이터전공 | E80: 20 | F80: 0 | G80: 20 | H80: 0
A81: 77 | B81: 보건과학대학원 | C81: 보건과학대학원 | D81: 과학수사학전공 | E81: 19 | F81: 0 | G81: 19 | H81: 0
A82: 78 | B82: 일반대학원 | C82: 일반대학원(원주) | D82: 시각디자인학과 | E82: 17 | F82: 0 | G82: 17 | H82: 0
A83: 79 | B83: 학부(미래) | C83: 보건과학대학 | D83: 보건행정학과 | E83: 17 | F83: 0 | G83: 17 | H83: 0
A84: 80 | B84: 일반대학원 | C84: 일반대학원(원주) | D84: 보건정책 및 관리학협동과정 | E84: 15 | F84: 0 | G84: 15 | H84: 0
A85: 81 | B85: 학부(미래) | C85: 보건과학대학 | D85: 방사선학과 | E85: 14 | F85: 0 | G85: 14 | H85: 0
A86: 82 | B86: 보건과학대학원 | C86: 보건과학대학원 | D86: 인간공학치료학전공 | E86: 13 | F86: 0 | G86: 13 | H86: 0
A87: 83 | B87: 보건과학대학원 | C87: 보건과학대학원 | D87: 환경공학전공 | E87: 11 | F87: 0 | G87: 11 | H87: 0
A88: 84 | B88: 학부(미래) | C88: 과학기술대학 | D88: 물리학 | E88: 11 | F88: 0 | G88: 11 | H88: 0
A89: 85 | B89: 일반대학원 | C89: 일반대학원(원주) | D89: 산업디자인학과 | E89: 9 | F89: 0 | G89: 9 | H89: 0
A90: 86 | B90: 보건과학대학원 | C90: 보건과학대학원 | D90: 헬스케어융합학전공 | E90: 8 | F90: 0 | G90: 8 | H90: 0
A91: 87 | B91: 학부(미래) | C91: 과학기술대학 | D91: 생명과학 | E91: 8 | F91: 0 | G91: 8 | H91: 0
A92: 88 | B92: 학부(미래) | C92: 과학기술대학 | D92: 컴퓨터공학 | E92: 8 | F92: 0 | G92: 8 | H92: 0
A93: 89 | B93: 일반대학원 | C93: 일반대학원(원주) | D93: 정보통계학과 | E93: 7 | F93: 0 | G93: 7 | H93: 0
A94: 90 | B94: 학부(미래) | C94: 과학기술대학 | D94: 수학 | E94: 6 | F94: 0 | G94: 6 | H94: 0
A95: 91 | B95: 학부(미래) | C95: 소프트웨어디지털헬스케어융합대학 | D95: 소프트웨어학부 | E95: 6 | F95: 0 | G95: 6 | H95: 0
A96: 92 | B96: 일반대학원 | C96: 일반대학원(원주) | D96: 디지털헬스케어학과 | E96: 5 | F96: 0 | G96: 5 | H96: 0
A97: 93 | B97: 학부(미래) | C97: 보건과학대학 | D97: 작업치료학과 | E97: 5 | F97: 0 | G97: 5 | H97: 0
A98: 94 | B98: 학부(미래) | C98: 소프트웨어디지털헬스케어융합대학 | D98: 보건행정학부 | E98: 5 | F98: 0 | G98: 5 | H98: 0
A99: 95 | B99: 일반대학원 | C99: 일반대학원(원주) | D99: 물리학과 | E99: 3 | F99: 0 | G99: 3 | H99: 0
A100: 96 | B100: 학부(미래) | C100: 과학기술융합대학 | D100: 환경에너지공학부 | E100: 3 | F100: 0 | G100: 3 | H100: 0
A101: 97 | B101: 학부(미래) | C101: 과학기술융합대학 | D101: AI반도체학전공 | E101: 2 | F101: 0 | G101: 2 | H101: 0
A102: 98 | B102: 학부(미래) | C102: 글로벌창의융합대학 | D102: 디자인예술학부 | E102: 2 | F102: 0 | G102: 2 | H102: 0
A103: 99 | B103: 학부(미래) | C103: 소프트웨어디지털헬스케어융합대학 | D103: 데이터사이언스학부 | E103: 2 | F103: 0 | G103: 2 | H103: 0
A104: 100 | B104: 학부(미래) | C104: 소프트웨어디지털헬스케어융합대학 | D104: 디지털헬스케어학부 | E104: 2 | F104: 0 | G104: 2 | H104: 0
A105: 101 | B105: 학부(미래) | C105: 소프트웨어디지털헬스케어융합대학 | D105: 의공학부 | E105: 2 | F105: 0 | G105: 2 | H105: 0
A106: 102 | B106: 보건환경대학원 | C106: 보건환경대학원 | D106: 보건관리학전공 | E106: 1 | F106: 0 | G106: 1 | H106: 0
A107: 103 | B107: 보건환경대학원 | C107: 보건환경대학원 | D107: 의생명과학전공 | E107: 1 | F107: 0 | G107: 1 | H107: 0
A108: 104 | B108: 일반대학원 | C108: 일반대학원(원주) | D108: YM-KIST 바이오헬스융합학과 | E108: 1 | F108: 0 | G108: 1 | H108: 0
A109: 105 | B109: 일반대학원 | C109: 일반대학원(원주) | D109: 디자인경영학협동과정 | E109: 1 | F109: 0 | G109: 1 | H109: 0
A110: 106 | B110: 학부(미래) | C110: 과학기술융합대학 | D110: 패키징및물류학심화전공 | E110: 1 | F110: 0 | G110: 1 | H110: 0
A111: 107 | B111: 학부(미래) | C111: 보건과학대학 | D111: 보건과학부 재활보건학전공 | E111: 1 | F111: 0 | G111: 1 | H111: 0
A112: 108 | B112: 학부(미래) | C112: 보건과학대학 | D112: 환경공학 | E112: 1 | F112: 0 | G112: 1 | H112: 0
A113: 109 | B113: 학부(미래) | C113: 소프트웨어디지털헬스케어융합대학 | D113: 보건과학부 | E113: 1 | F113: 0 | G113: 1 | H113: 0
A114: 110 | B114: 학부(미래) | C114: 인문예술대학 | D114: 디지털아트학 | E114: 1 | F114: 0 | G114: 1 | H114: 0
A115: 111 | B115: 학부(미래) | C115: 인문예술대학 | D115: 산업디자인학 | E115: 1 | F115: 0 | G115: 1 | H115: 0
A116: 합계(명) | E116: =SUM(E5:E115) -> 4280 | F116: =SUM(F5:F115) -> 1085 | G116: 3195 | H116: =F116/E116 -> 0.2535046729
